bitfinex-derivatives/quotes_BTCF0:USTF0_20251023
["timestamp","ask_amount","ask_price","bid_price","bid_amount"]
[1761232391411,0.22790758,109910.0,109900.0,0.52477238]
[1761232391705,0.24907758,109910.0,109900.0,0.52477238]
[1761232391906,0.24907758,109910.0,109900.0,0.46477238]
[1761232392107,0.24907758,109910.0,109900.0,0.00554938]
[1761232392303,0.58075758,109910.0,109900.0,0.00654938]
[1761232392907,0.24907758,109910.0,109900.0,0.39051278]
[1761232393119,0.24907758,109910.0,109900.0,0.04954938]
[1761232393311,0.24907758,109910.0,109900.0,0.00654938]
[1761232393813,0.24907758,109910.0,109890.0,0.0909712]
[1761232393814,0.04423,109890.0,109880.0,7.303e-05]
[1761232394105,0.58079758,109890.0,109880.0,7.303e-05]
[1761232394511,1.00511762,109890.0,109880.0,7.303e-05]
[1761232394709,0.04423,109870.0,109860.0,0.02622104]
[1761232394906,0.24907758,109870.0,109860.0,0.02622104]
[1761232395105,0.58071758,109870.0,109860.0,0.00455104]
[1761232395814,0.58080686,109870.0,109860.0,0.00455104]
[1761232396198,0.58080686,109870.0,109860.0,0.00555104]
[1761232396412,0.98080686,109870.0,109860.0,0.00555104]
[1761232398802,0.98180686,109870.0,109860.0,0.00455104]
[1761232399013,0.58180686,109870.0,109860.0,0.00455104]
[1761232399416,0.58180686,109870.0,109860.0,0.02622104]
[1761232399610,0.25016686,109870.0,109860.0,0.39854754]
[1761232399916,0.58168686,109870.0,109860.0,0.09554754]
[1761232400410,0.58168686,109870.0,109860.0,0.00455104]
[1761232400625,0.98168686,109870.0,109860.0,0.00455104]
[1761232400813,0.058,109860.0,109850.0,0.0910034]
[1761232401114,0.26284758,109860.0,109850.0,0.0910034]
[1761232401506,0.26284758,109860.0,109850.0,0.1126734]
[1761232401704,0.04423,109860.0,109850.0,0.3640034]
[1761232401908,0.58103758,109860.0,109850.0,0.1350034]
[1761232402109,0.58103758,109860.0,109850.0,0.3850034]
[1761232402317,0.59480758,109860.0,109850.0,0.3420034]
[1761232402506,0.59480758,109860.0,109850.0,0.3420047]
[1761232402907,0.58103758,109860.0,109850.0,0.3864447]
[1761232403310,0.58103758,109860.0,109850.0,0.1864447]
[1761232403615,0.59437758,109860.0,109850.0,0.4464447]
[1761232403821,0.58103758,109860.0,109850.0,0.4464447]
[1761232404110,0.58095758,109860.0,109850.0,0.4464447]
[1761232404303,0.59429758,109860.0,109850.0,0.1364447]
[1761232404501,0.59429758,109860.0,109850.0,0.3664447]
[1761232404906,0.37611,109860.0,109850.0,0.3964447]
[1761232405117,0.58095758,109860.0,109850.0,0.3964447]
[1761232405314,0.59429758,109860.0,109850.0,0.001]
[1761232407419,0.37611,109860.0,109850.0,0.3566447]
[1761232407606,0.59475758,109860.0,109850.0,0.4066447]
[1761232407810,0.59475758,109860.0,109850.0,0.0920047]
[1761232408124,0.59475758,109860.0,109850.0,0.001]
[1761232409316,0.99475758,109860.0,109850.0,0.001]
[1761232409522,0.59484686,109860.0,109850.0,0.001]
[1761232409824,0.04439,109830.0,109820.0,0.1529493]
[1761232410016,0.04447928,109830.0,109820.0,0.40262893]
[1761232410213,0.24932686,109830.0,109820.0,0.42262893]
[1761232410410,0.24932686,109830.0,109820.0,0.4229493]
[1761232410618,0.24932686,109830.0,109820.0,0.1595713]
[1761232410817,0.38855348,109830.0,109820.0,0.4002993]
[1761232411020,0.38855348,109830.0,109820.0,0.37972928]
[1761232411224,0.38855348,109830.0,109820.0,0.3602993]
[1761232411525,0.38855348,109830.0,109820.0,0.3702993]
[1761232411716,0.38855348,109830.0,109820.0,0.1442993]
[1761232411917,0.38855348,109830.0,109820.0,0.42216659]
[1761232412122,0.38855348,109830.0,109820.0,0.28800999]
[1761232412319,0.38855348,109830.0,109820.0,0.02800999]
[1761232412523,0.38855348,109830.0,109820.0,0.04136272]
[1761232412722,0.38855348,109830.0,109820.0,0.02190543]
[1761232413117,0.38855348,109830.0,109820.0,0.0085527]
[1761232413519,0.38955348,109830.0,109820.0,0.0045527]
[1761232413925,0.78955348,109830.0,109820.0,1e-08]
[1761232414918,0.78955348,109830.0,109800.0,0.0198771]
[1761232414919,0.78955348,109830.0,109800.0,0.1340481]
[1761232415223,0.3884642,109810.0,109800.0,0.4956381]
[1761232415523,0.388545,109810.0,109800.0,0.1556381]
[1761232415719,0.388545,109810.0,109800.0,0.3856381]
[1761232415920,0.388545,109810.0,109800.0,0.34115655]
[1761232416125,0.388545,109810.0,109800.0,0.09115655]
[1761232416820,0.388545,109810.0,109800.0,0.00011555]
[1761232417022,0.388545,109810.0,109800.0,0.09116165]
[1761232417325,0.388545,109810.0,109800.0,0.35529165]
[1761232417528,0.388545,109810.0,109800.0,0.00111555]
[1761232417729,0.788545,109810.0,109800.0,0.00111555]
[1761232417917,0.788545,109810.0,109800.0,0.00011555]
[1761232418122,0.388545,109810.0,109800.0,0.37216175]
[1761232418625,0.388545,109810.0,109800.0,0.09216175]
[1761232419227,0.388545,109810.0,109800.0,0.36529175]
[1761232419428,8.08e-05,109810.0,109800.0,0.48953175]
[1761232419622,0.719945,109810.0,109800.0,0.45877547]
[1761232420833,0.719945,109810.0,109800.0,0.44877547]
[1761232422226,0.719945,109810.0,109800.0,0.15612547]
[1761232422428,0.719945,109810.0,109800.0,0.89877547]
[1761232422429,8.08e-05,109810.0,109800.0,0.89877547]
[1761232422931,0.0232808,109810.0,109800.0,0.89877547]
[1761232423141,0.05819,109840.0,109830.0,0.0910213]
[1761232423431,0.05819,109840.0,109830.0,0.1357413]
[1761232423432,0.6813442,109840.0,109830.0,0.1357413]
[1761232423631,0.6813442,109840.0,109820.0,0.1483933]
[1761232423833,0.3884642,109830.0,109820.0,0.1483933]
[1761232424131,0.3884642,109830.0,109820.0,0.3883933]
[1761232424523,0.3884642,109830.0,109820.0,0.3783933]
[1761232424729,0.3884642,109830.0,109820.0,0.3983933]
[1761232425327,0.3884642,109830.0,109820.0,0.3883933]
[1761232425528,0.3884642,109830.0,109820.0,0.1357433]
[1761232426230,0.0910296,109820.0,109810.0,0.1141622]
[1761232426425,0.8242138,109820.0,109810.0,0.1141622]
[1761232426627,0.8242138,109820.0,109810.0,0.1357522]
[1761232426826,0.4663396,109820.0,109810.0,0.1357522]
[1761232427026,0.37531,109820.0,109810.0,0.4157522]
[1761232427628,0.33092,109820.0,109810.0,0.4157522]
[1761232428229,0.33192,109820.0,109810.0,0.4157522]
[1761232428733,0.001,109820.0,109810.0,0.8157522]
[1761232429433,0.06871004,109850.0,109840.0,0.091013]
[1761232429627,0.06871004,109850.0,109840.0,0.368383]
[1761232429822,0.74342424,109850.0,109840.0,0.368383]
[1761232430039,0.7191042,109850.0,109840.0,0.368383]
[1761232430535,0.7191042,109850.0,109840.0,0.36500804]
[1761232430729,0.7211042,109850.0,109840.0,0.16765804]
[1761232430930,0.8121089,109850.0,109840.0,0.148383]
[1761232431136,0.8121089,109850.0,109840.0,0.355733]
[1761232431341,0.8121089,109850.0,109840.0,0.331013]
[1761232432528,0.8121089,109850.0,109840.0,0.091013]
[1761232432728,0.8121089,109850.0,109840.0,0.331013]
[1761232432930,0.04639,109850.0,109840.0,0.369993]
[1761232433128,0.4467247,109850.0,109840.0,0.369993]
[1761232433329,0.4467247,109850.0,109840.0,0.149993]
[1761232433525,0.3326,109850.0,109840.0,0.40916689]
[1761232433744,0.002,109850.0,109840.0,0.16916689]
[1761232434037,0.002,109850.0,109840.0,0.38916689]
[1761232434239,0.002,109850.0,109840.0,0.16916689]
[1761232434542,0.002,109850.0,109840.0,0.44916689]
[1761232435036,0.4835889,109850.0,109840.0,0.136353]
[1761232435434,0.4835889,109850.0,109840.0,0.091013]
[1761232435635,0.1375259,109840.0,109830.0,0.1347658]
[1761232435834,0.4816001,109840.0,109830.0,0.4447658]
[1761232436034,0.8120801,109840.0,109830.0,0.1347658]
[1761232436243,0.8120801,109840.0,109830.0,0.4447658]
[1761232436634,0.8120801,109840.0,109830.0,0.1847658]
[1761232436941,0.8130801,109840.0,109830.0,0.4247658]
[1761232437142,0.7220642,109840.0,109830.0,0.4247658]
[1761232437341,0.8130772,109840.0,109830.0,0.1347658]
[1761232437544,0.8130772,109840.0,109830.0,0.4747658]
[1761232438645,0.8130772,109840.0,109830.0,0.1847658]
[1761232438945,0.8130772,109840.0,109830.0,0.1347658]
[1761232439245,0.7220642,109840.0,109830.0,0.3647658]
[1761232439940,0.8130772,109840.0,109830.0,0.1347658]
[1761232440144,0.8130772,109840.0,109830.0,0.3647658]
[1761232440344,0.7220642,109840.0,109830.0,0.3647658]
[1761232440545,0.8130772,109840.0,109830.0,0.3647658]
[1761232440944,0.37799,109840.0,109830.0,0.3647658]
[1761232441445,0.469003,109840.0,109830.0,0.3647658]
[1761232442248,0.469003,109840.0,109830.0,0.1347658]
[1761232442447,0.8260572,109840.0,109830.0,0.1347658]
[1761232442643,0.8260572,109840.0,109830.0,0.3647658]
[1761232442940,0.8250572,109840.0,109830.0,0.1347658]
[1761232443146,0.1375313,109830.0,109820.0,0.1347746]
[1761232443343,0.1505196,109820.0,109810.0,0.134783]
[1761232443543,0.8243938,109820.0,109810.0,0.414783]
[1761232443846,0.8243938,109820.0,109810.0,0.43382488]
[1761232444453,0.8243938,109820.0,109810.0,0.15382488]
[1761232444740,0.8243938,109820.0,109810.0,0.374783]
[1761232444948,0.8243938,109820.0,109810.0,0.39470646]
[1761232445146,0.8114138,109820.0,109810.0,0.39470646]
[1761232445543,0.8124138,109820.0,109810.0,0.15470646]
[1761232445779,0.8124138,109820.0,109810.0,0.134783]
[1761232445972,0.8253938,109820.0,109810.0,0.464783]
[1761232446166,0.4813196,109820.0,109810.0,0.464783]
[1761232446368,0.7343642,109820.0,109810.0,0.464783]
[1761232446682,0.37731,109820.0,109810.0,0.464783]
[1761232447076,0.35412,109820.0,109810.0,0.48470061]
[1761232447271,0.001,109820.0,109810.0,0.48470061]
[1761232447475,0.001,109820.0,109810.0,0.88470061]
[1761232448672,0.40080304,109850.0,109810.0,1.24603051]
[1761232448872,0.41490424,109850.0,109840.0,0.148403]
[1761232449068,0.74430424,109850.0,109840.0,0.388403]
[1761232449273,0.40023004,109850.0,109840.0,0.148403]
[1761232449476,0.74430424,109850.0,109840.0,0.378403]
[1761232449877,0.74430424,109850.0,109840.0,0.148403]
[1761232450078,0.74430424,109850.0,109840.0,0.368403]
[1761232450577,0.74430424,109850.0,109840.0,0.378403]
[1761232450779,0.02632004,109850.0,109840.0,0.378403]
[1761232451081,0.04964004,109850.0,109840.0,0.378403]
[1761232451381,0.04651,109850.0,109840.0,0.148403]
[1761232451577,0.3915842,109850.0,109840.0,0.148403]
[1761232452082,0.3915842,109850.0,109840.0,0.364763]
[1761232452585,0.3915842,109850.0,109840.0,0.134763]
[1761232453577,0.04751,109850.0,109840.0,0.368403]
[1761232453783,0.3915842,109850.0,109840.0,0.148403]
[1761232454177,0.02319,109830.0,109820.0,0.1802695]
[1761232454378,0.3905842,109830.0,109820.0,0.3547796]
[1761232455077,0.41490424,109830.0,109820.0,0.3684196]
[1761232455281,0.1375313,109830.0,109820.0,0.3684196]
[1761232455480,0.1385313,109830.0,109820.0,0.1484196]
[1761232455679,0.1385313,109830.0,109820.0,0.3684196]
[1761232456582,0.1385313,109830.0,109820.0,0.4084196]
[1761232457485,0.1385313,109830.0,109820.0,0.1484196]
[1761232457785,0.50692554,109830.0,109820.0,0.0910296]
[1761232458175,0.50692554,109830.0,109820.0,0.1125696]
[1761232458977,0.50692554,109830.0,109820.0,0.1347796]
[1761232459178,0.50692554,109830.0,109820.0,0.3447796]
[1761232459380,0.50692554,109830.0,109820.0,0.3584196]
[1761232459381,0.07183004,109830.0,109820.0,0.3584196]
[1761232459585,0.1385313,109830.0,109820.0,0.3584196]
[1761232460085,0.4826055,109830.0,109820.0,0.3584196]
[1761232460287,0.4826055,109830.0,109820.0,0.3984196]
[1761232460584,0.4826055,109830.0,109820.0,0.3784196]
[1761232460976,0.4826055,109830.0,109820.0,0.1484196]
[1761232461176,0.3915842,109830.0,109820.0,0.1484196]
[1761232461371,0.1385313,109830.0,109820.0,0.1484196]
[1761232461574,0.1385313,109830.0,109820.0,0.3884196]
[1761232461979,0.001,109830.0,109820.0,0.3884196]
[1761232462280,0.001,109830.0,109820.0,1.1172196]
[1761232463186,0.74370424,109850.0,109840.0,0.148453]
[1761232463371,0.83470894,109850.0,109840.0,0.368453]
[1761232463577,0.35312004,109850.0,109840.0,0.368453]
[1761232463990,0.35312004,109850.0,109840.0,0.388453]
[1761232464285,0.37415004,109850.0,109840.0,0.388453]
[1761232464680,0.37415004,109850.0,109840.0,0.148453]
[1761232465085,0.37415004,109850.0,109840.0,0.398453]
[1761232465485,0.35312004,109850.0,109840.0,0.378453]
[1761232465686,0.35312004,109850.0,109840.0,0.408453]
[1761232465875,0.02432004,109850.0,109840.0,0.408453]
[1761232466082,0.02532004,109850.0,109840.0,0.408453]
[1761232466277,0.1359547,109850.0,109840.0,0.148453]
[1761232466481,0.1359547,109850.0,109840.0,0.378453]
[1761232466790,0.4800289,109850.0,109840.0,0.368453]
[1761232467285,0.3890242,109850.0,109840.0,0.368453]
[1761232467487,0.04495,109850.0,109840.0,0.148453]
[1761232467683,0.04395,109850.0,109840.0,0.148453]
[1761232467892,0.1359547,109850.0,109840.0,0.148453]
[1761232468189,0.04495,109850.0,109840.0,0.378453]
[1761232468689,0.02203,109850.0,109840.0,0.378453]
[1761232468889,0.001,109850.0,109840.0,0.378453]
[1761232469495,0.001,109850.0,109840.0,0.707213]
[1761232469785,0.32876,109860.0,109850.0,0.1346847]
[1761232469981,0.32876,109860.0,109850.0,0.4646847]
[1761232470489,0.32876,109860.0,109850.0,0.8646847]
[1761232470678,0.0048,109870.0,109860.0,0.1473864]
[1761232470880,0.0048,109870.0,109860.0,0.3773864]
[1761232471482,0.0048,109870.0,109860.0,0.1573864]
[1761232471682,0.0048,109870.0,109860.0,0.4773864]
[1761232472989,0.0058,109870.0,109860.0,0.4773864]
[1761232473288,0.0058,109870.0,109860.0,0.8061064]
[1761232473687,0.0058,109870.0,109860.0,0.82388213]
[1761232473883,0.0058,109870.0,109860.0,1.22388213]
[1761232475287,0.11528334,109900.0,109890.0,0.1346515]
[1761232475288,0.04488,109900.0,109890.0,0.1346515]
[1761232475490,0.04488,109900.0,109890.0,0.3546515]
[1761232475794,0.69870765,109910.0,109900.0,0.1473533]
[1761232476294,0.69870765,109910.0,109900.0,0.1346433]
[1761232476495,0.69870765,109910.0,109900.0,0.04368]
[1761232476696,0.67438761,109910.0,109900.0,0.04368]
[1761232477397,0.67538761,109910.0,109900.0,0.1346433]
[1761232477591,0.1358433,109900.0,109890.0,0.1346457]
[1761232477781,0.35410071,109900.0,109890.0,0.1346457]
[1761232478490,0.35410071,109900.0,109890.0,0.0909657]
[1761232478691,0.35410071,109900.0,109890.0,0.1346457]
[1761232478891,0.35510071,109900.0,109890.0,0.1346457]
[1761232479491,0.02296,109900.0,109890.0,0.1346457]
[1761232479695,0.25094741,109900.0,109890.0,0.4246457]
[1761232480690,0.001,109900.0,109890.0,0.4246457]
[1761232481895,0.25474741,109910.0,109900.0,0.1473533]
[1761232482096,0.25474741,109910.0,109900.0,0.4373533]
[1761232482297,0.23182741,109910.0,109900.0,0.4373533]
[1761232482497,0.25474741,109910.0,109900.0,0.4373533]
[1761232483084,0.25574741,109910.0,109900.0,0.4373533]
[1761232483288,0.05068,109910.0,109900.0,0.4373533]
[1761232483497,0.25574741,109910.0,109900.0,0.4373533]
[1761232484398,0.25574741,109910.0,109900.0,0.1473533]
[1761232484591,0.25574741,109910.0,109900.0,0.3873533]
[1761232485689,0.25574741,109910.0,109900.0,0.1473533]
[1761232485998,0.25574741,109910.0,109900.0,0.3873533]
[1761232486201,0.25474741,109910.0,109900.0,0.3873533]
[1761232486386,0.25574741,109910.0,109900.0,0.3873533]
[1761232487902,0.25474741,109910.0,109900.0,0.3873533]
[1761232488099,0.25574741,109910.0,109900.0,0.3873533]
[1761232488798,0.25574741,109910.0,109900.0,0.0909633]
[1761232488999,0.05807,109900.0,109890.0,0.1346449]
[1761232489305,0.59169741,109900.0,109890.0,0.1346449]
[1761232489796,0.59169741,109900.0,109890.0,0.1846449]
[1761232490002,0.59169741,109900.0,109890.0,0.1346449]
[1761232490300,0.59169741,109900.0,109890.0,0.3946449]
[1761232490703,0.59169741,109900.0,109890.0,0.1346449]
[1761232491300,0.99269741,109900.0,109880.0,0.1120036]
[1761232491501,0.24994741,109890.0,109880.0,0.0909736]
[1761232491703,0.24994741,109890.0,109880.0,0.1120036]
[1761232492005,0.24994741,109890.0,109880.0,0.0909736]
[1761232493902,0.05865,109880.0,109870.0,0.1334626]
[1761232494097,0.57904741,109880.0,109870.0,0.4334626]
[1761232494700,0.37398,109880.0,109870.0,0.4334626]
[1761232495198,0.001,109880.0,109870.0,0.4334626]
[1761232495395,0.02332004,109900.0,109890.0,0.0909715]
[1761232495707,0.33187441,109930.0,109920.0,0.04265]
[1761232495899,0.25052741,109930.0,109920.0,0.24265]
[1761232496100,0.25052741,109930.0,109920.0,0.3335967]
[1761232496507,0.25052741,109930.0,109920.0,0.3473367]
[1761232497500,0.25052741,109930.0,109920.0,0.1473367]
[1761232497700,0.04546,109930.0,109920.0,0.3973367]
[1761232498111,0.58891741,109940.0,109930.0,0.1335884]
[1761232498306,0.08284433,109950.0,109940.0,0.1473201]
[1761232498608,0.25532741,109950.0,109940.0,0.3573201]
[1761232498798,0.25532741,109950.0,109940.0,0.1335801]
[1761232498799,0.34624931,109950.0,109940.0,0.1335801]
[1761232498998,0.37883364,109950.0,109940.0,0.0909301]
[1761232499402,0.1041216,109940.0,109930.0,0.0909314]
[1761232499604,0.35464901,109940.0,109930.0,0.0909314]
[1761232499804,0.35464901,109940.0,109930.0,0.35143508]
[1761232500111,0.26371741,109940.0,109930.0,0.35143508]
[1761232500310,0.26371741,109940.0,109930.0,0.15143508]
[1761232500511,0.35464761,109940.0,109930.0,0.15143508]
[1761232500809,0.68312761,109940.0,109930.0,0.1121314]
[1761232501314,0.68412761,109940.0,109930.0,0.1335814]
[1761232501610,0.32948,109940.0,109930.0,0.32074199]
[1761232501810,0.001,109940.0,109930.0,0.32074199]
[1761232502314,0.33328,109950.0,109940.0,0.1473202]
[1761232502609,0.33328,109950.0,109940.0,0.4473202]
[1761232502811,0.0048,109950.0,109940.0,0.8473202]
[1761232503108,0.32282,109970.0,109960.0,0.1473036]
[1761232503314,0.32282,109970.0,109960.0,0.3373036]
[1761232503505,0.32282,109970.0,109960.0,0.3073036]
[1761232503701,0.32282,109970.0,109960.0,0.1835636]
[1761232503906,0.52788741,109970.0,109960.0,0.1835636]
[1761232504114,0.52788741,109970.0,109960.0,0.2335636]
[1761232504313,0.32282,109970.0,109960.0,0.1473036]
[1761232504509,0.32282,109970.0,109960.0,0.4373036]
[1761232504703,0.32282,109970.0,109960.0,0.4573036]
[1761232504906,0.52988741,109970.0,109950.0,0.090918]
[1761232505208,0.26371741,109960.0,109950.0,0.0909219]
[1761232505616,0.66371741,109960.0,109950.0,0.1335719]
[1761232505810,0.66371741,109960.0,109950.0,0.0909219]
[1761232506012,0.66371741,109960.0,109940.0,0.1121292]
[1761232506219,0.57892741,109950.0,109940.0,0.1121292]
[1761232507510,0.57892741,109950.0,109940.0,0.0909292]
[1761232507816,0.57992741,109950.0,109940.0,0.0909292]
[1761232508409,0.37486,109950.0,109940.0,0.1335792]
[1761232508615,0.37486,109950.0,109940.0,0.3135792]
[1761232508916,0.37486,109950.0,109940.0,0.1473192]
[1761232508917,0.57992741,109950.0,109940.0,0.1473192]
[1761232509213,0.3294,109950.0,109940.0,0.8773192]
[1761232509915,0.3294,109950.0,109940.0,0.4773192]
[1761232510120,0.04546,109980.0,109970.0,0.1335553]
[1761232510425,0.57888741,109980.0,109970.0,0.1335553]
[1761232511216,0.37382,109980.0,109970.0,0.3235553]
[1761232511407,0.37682,109980.0,109970.0,0.3235553]
[1761232511607,0.37682,109980.0,109970.0,0.1335553]
[1761232511916,0.59507741,109980.0,109960.0,0.0909109]
[1761232512107,0.25052741,109970.0,109960.0,0.1409109]
[1761232512612,0.25052741,109970.0,109960.0,0.3709109]
[1761232513013,0.25052741,109970.0,109960.0,0.2009109]
[1761232513211,0.25052741,109970.0,109960.0,0.4209109]
[1761232513415,0.25052741,109970.0,109960.0,0.4635609]
[1761232513716,0.04546,109970.0,109960.0,0.4673009]
[1761232513919,0.25252741,109970.0,109960.0,0.4673009]
[1761232514417,0.04746,109970.0,109960.0,0.1521109]
[1761232514619,0.25252741,109970.0,109960.0,0.4735609]
[1761232514806,0.25252741,109970.0,109960.0,0.4873009]
[1761232515009,0.25252741,109970.0,109960.0,0.1473009]
[1761232515209,0.25252741,109970.0,109960.0,0.4273009]
[1761232515611,0.25252741,109970.0,109960.0,0.2573009]
[1761232515806,0.25252741,109970.0,109960.0,0.4573009]
[1761232516011,0.25252741,109970.0,109960.0,0.4373009]
[1761232516613,0.04746,109970.0,109960.0,0.4373009]
[1761232517021,0.25252741,109970.0,109960.0,0.4373009]
[1761232517920,0.04746,109970.0,109960.0,0.4373009]
[1761232518221,0.25252741,109970.0,109960.0,0.4373009]
[1761232518420,0.25252741,109970.0,109960.0,0.4873009]
[1761232520117,0.04746,109970.0,109960.0,0.4873009]
[1761232520318,0.002,109970.0,109960.0,0.4873009]
[1761232520824,0.002,109970.0,109960.0,0.8155409]
[1761232522122,0.002,109970.0,109960.0,1.02060831]
[1761232522621,0.002,109970.0,109960.0,1.42060831]
[1761232523021,0.002,109970.0,109960.0,1.2155409]
[1761232523318,0.002,109970.0,109960.0,0.6355409]
[1761232523319,0.25062741,109970.0,109960.0,0.6355409]
[1761232523521,0.04556,109970.0,109960.0,0.7755409]
[1761232523725,0.25062741,109970.0,109960.0,0.7755409]
[1761232524224,0.04556,109970.0,109960.0,0.7755409]
[1761232524425,0.002,109970.0,109960.0,0.7755409]
[1761232524614,0.04556,109970.0,109960.0,0.7755409]
[1761232524918,0.25062741,109970.0,109960.0,0.4473009]
[1761232525315,0.002,109970.0,109960.0,0.4473009]
[1761232526526,0.24973741,109970.0,109960.0,0.4473009]
[1761232526822,0.24973741,109970.0,109960.0,0.4335609]
[1761232527021,0.24973741,109970.0,109960.0,0.1335609]
[1761232527425,0.24973741,109970.0,109960.0,0.0909136]
[1761232528421,0.24973741,109970.0,109950.0,0.0909166]
[1761232528422,0.01368,109960.0,109950.0,0.0909166]
[1761232528627,0.01368,109960.0,109950.0,0.0909219]
[1761232528628,0.79553482,109960.0,109950.0,0.0909219]
[1761232529231,0.82811915,109960.0,109950.0,0.0909219]
[1761232529427,0.82811915,109960.0,109940.0,0.1341954]
[1761232529631,0.24862741,109950.0,109940.0,0.1341954]
[1761232530729,0.24862741,109950.0,109940.0,0.0909254]
[1761232531523,0.05724,109940.0,109930.0,0.0909373]
[1761232531721,0.37172,109940.0,109930.0,0.1342073]
[1761232531936,0.57678741,109940.0,109930.0,0.2342073]
[1761232532231,0.57678741,109940.0,109930.0,0.2242073]
[1761232532833,0.72979311,109940.0,109930.0,0.23964688]
[1761232533225,0.72979311,109940.0,109930.0,0.14964688]
[1761232533429,0.72879311,109940.0,109930.0,0.0909373]
[1761232533630,0.72979311,109940.0,109930.0,0.0909373]
[1761232533839,0.72979311,109940.0,109930.0,0.1120373]
[1761232534529,0.37272,109940.0,109930.0,0.1342073]
[1761232534936,0.35144,109940.0,109930.0,0.4042073]
[1761232535134,0.001,109940.0,109930.0,0.4042073]
[1761232535338,0.001,109940.0,109930.0,0.8042073]
[1761232535542,0.001,109940.0,109930.0,1.14760041]
[1761232535837,0.74769744,109970.0,109960.0,0.1341836]
[1761232536227,0.03596,109960.0,109950.0,0.1120138]
[1761232536435,0.40063311,109960.0,109950.0,0.1120138]
[1761232536829,0.40063311,109960.0,109950.0,0.1341838]
[1761232537131,0.05724,109960.0,109950.0,0.2341838]
[1761232537331,0.05924,109960.0,109950.0,0.15022981]
[1761232537531,0.05924,109960.0,109950.0,0.1341838]
[1761232537933,0.40263311,109960.0,109950.0,0.1341838]
[1761232538639,0.40263311,109960.0,109950.0,0.1120138]
[1761232538835,0.40063311,109960.0,109950.0,0.1120138]
[1761232539043,0.40163311,109960.0,109950.0,0.1120138]
[1761232539842,0.04456,109960.0,109950.0,0.2141838]
[1761232540242,0.04456,109960.0,109950.0,0.1341838]
[1761232540839,0.40163311,109960.0,109950.0,0.1341838]
[1761232541040,0.40163311,109960.0,109950.0,0.0909138]
[1761232542229,0.40163311,109960.0,109940.0,0.14964873]
[1761232542637,0.71507311,109950.0,109940.0,0.14964873]
[1761232543736,0.71507311,109950.0,109940.0,0.28964873]
[1761232543937,0.37168,109950.0,109940.0,0.1341948]
[1761232544136,0.71507311,109950.0,109940.0,0.1120248]
[1761232544538,0.71507311,109950.0,109940.0,0.1341948]
[1761232544737,0.71507311,109950.0,109940.0,0.1120248]
[1761232544944,0.71507311,109950.0,109940.0,0.1341948]
[1761232545144,0.71607311,109950.0,109940.0,0.14997639]
[1761232545349,0.71607311,109950.0,109940.0,0.1341948]
[1761232545848,0.71607311,109950.0,109940.0,0.0909248]
[1761232546643,0.05724,109940.0,109930.0,0.1342065]
[1761232546843,0.40063311,109940.0,109930.0,0.1342065]
[1761232547252,0.38695311,109940.0,109930.0,0.2542065]
[1761232547457,0.38695311,109940.0,109930.0,0.1342065]
[1761232547660,0.40063311,109940.0,109930.0,0.2742065]
[1761232547954,0.05724,109940.0,109930.0,0.2742065]
[1761232548351,0.04356,109940.0,109930.0,0.2742065]
[1761232549156,0.04356,109940.0,109930.0,0.2342065]
[1761232549461,0.37168,109950.0,109940.0,0.1469901]
[1761232551463,0.37268,109950.0,109940.0,0.1469901]
[1761232551758,0.37268,109950.0,109940.0,0.2869901]
[1761232551954,0.37268,109950.0,109940.0,0.2769901]
[1761232552158,0.001,109950.0,109940.0,0.4769901]
[1761232552352,0.001,109950.0,109940.0,0.8769901]
[1761232553061,0.04572,109950.0,109940.0,0.8569901]
[1761232553259,0.04572,109950.0,109940.0,0.8869901]
[1761232553460,0.04572,109950.0,109940.0,0.4869901]
[1761232553661,0.04572,109950.0,109940.0,0.2569901]
[1761232553861,0.38911311,109950.0,109940.0,0.1120301]
[1761232554055,0.38911311,109950.0,109940.0,0.0909301]
[1761232555162,0.38911311,109950.0,109940.0,0.1141701]
[1761232555356,0.38911311,109950.0,109940.0,0.0909301]
[1761232555557,0.41360837,109950.0,109940.0,0.0909301]
[1761232556557,0.07021526,109950.0,109940.0,0.1141701]
[1761232557358,0.10279959,109950.0,109940.0,0.1372501]
[1761232557866,0.4461927,109950.0,109940.0,0.1372501]
[1761232558459,0.4461927,109950.0,109930.0,0.0909365]
[1761232558660,0.38626,109940.0,109930.0,0.2472565]
[1761232558870,0.38626,109940.0,109930.0,0.1372565]
[1761232559559,0.75414837,109940.0,109930.0,0.1372565]
[1761232559963,0.41075526,109940.0,109930.0,0.1372565]
[1761232560164,0.75414837,109940.0,109930.0,0.0909365]
[1761232560965,0.41075526,109940.0,109930.0,0.0909365]
[1761232561261,0.75414837,109940.0,109930.0,0.0909365]
[1761232561659,0.75414837,109940.0,109920.0,0.0909408]
[1761232561867,0.41346837,109930.0,109920.0,0.1141808]
[1761232562065,0.41346837,109930.0,109920.0,0.02324]
[1761232562266,0.04558,109910.0,109900.0,0.20232262]
[1761232562461,0.37358,109910.0,109900.0,0.17047272]
[1761232562664,0.37358,109910.0,109900.0,0.25182958]
[1761232562865,0.07007526,109920.0,109910.0,0.137275]
[1761232563167,0.75406837,109920.0,109900.0,0.14182908]
[1761232563467,0.38897311,109910.0,109900.0,0.14182908]
[1761232563867,0.41346837,109910.0,109900.0,0.14183268]
[1761232564074,0.41346837,109910.0,109900.0,0.09551268]
[1761232564374,0.41346837,109910.0,109900.0,0.14183268]
[1761232564572,0.04558,109910.0,109900.0,0.15482268]
[1761232564869,0.04558,109910.0,109900.0,0.09551268]
[1761232565065,0.38897311,109910.0,109900.0,0.00454938]
[1761232565273,0.78897311,109910.0,109900.0,0.00454938]
[1761232565471,0.81346837,109910.0,109900.0,0.00454938]
[1761232565776,0.05822,109900.0,109890.0,0.09104514]
[1761232565976,0.05822,109900.0,109890.0,7.474e-05]
[1761232565977,0.72957311,109900.0,109890.0,7.474e-05]
[1761232566272,1.12957311,109900.0,109890.0,7.474e-05]
[1761232566569,1.12957311,109900.0,109890.0,0.09104624]
[1761232566570,1.1866527,109900.0,109890.0,0.09104624]
[1761232566769,0.75406837,109900.0,109890.0,0.09104624]
[1761232567162,0.72957311,109900.0,109890.0,0.13022553]
[1761232567365,0.38622,109900.0,109890.0,0.13022553]
[1761232567772,0.38622,109900.0,109890.0,0.11428624]
[1761232567975,0.40161311,109900.0,109890.0,0.09104624]
[1761232568166,0.72957311,109900.0,109890.0,0.09104624]
[1761232568366,0.40161311,109900.0,109890.0,0.11428624]
[1761232568670,0.72961311,109900.0,109890.0,0.13736624]
[1761232569170,0.72961311,109900.0,109890.0,0.11428624]
[1761232569473,0.72961311,109900.0,109890.0,7.474e-05]
[1761232569669,1.15410837,109900.0,109890.0,7.474e-05]
[1761232569865,0.75410837,109900.0,109890.0,7.474e-05]
[1761232571073,0.72961311,109900.0,109890.0,7.474e-05]
[1761232571374,0.75410837,109900.0,109890.0,7.474e-05]